Cogmind - Beta 12 @@@ ROGUE MODE // 2023.08.10 @ 00:49:50 Player: Roxy Result: Destroyed by H-71 Marshal with Heavy Mass Driver Performance ------------- Evolutions (5) 2500 Regions Visited (7) 1400 Robots Destroyed (48) 240 Value Destroyed (1752) 1752 Prototype IDs (5) 100 Alien Tech Used (0) 0 Bonus (381) 381 TOTAL SCORE: 6373 Bonus ------- Entered DSFs 500 Friendly Fire -119 Cogmind --------- Core Integrity 0/1000 Matter 131/300 Energy 78/100 System Corruption 3% Temperature Cool (21) Movement Core (50) Location -5/Factory Parts ------- > --- POWER (3) -------- (None) > --- PROPULSION (5) --- (None) > --- UTILITY (5) ------ Signal Interpreter Launcher Guidance Computer Point Defense System > --- WEAPON (4) ------- (None) > --- INVENTORY (5) ---- Terrain Scan Processor Improved Remote Datajack Peak State ------------ > --- POWER ------------ Deuterium Engine > --- PROPULSION ------- VSS Leg Flexi-carbon Leg > --- UTILITY ---------- Large Storage Unit Signal Interpreter Launcher Guidance Computer Weapon Cycler Layered Light Armor Plating > --- WEAPON ----------- Improved Arc Projector Beam Rifle > --- INVENTORY -------- Deuterium Engine Improved Deuterium Engine Angular Momentum Engine Terrain Scan Processor Rocket Launcher Rocket Launcher Missile Launcher Datajack [Rating: 35] Favorites ----------- Power Light Ion Engine Engine Light Ion Engine Power Core Nuclear Core Propulsion Aluminum Leg Leg Aluminum Leg Utility Large Storage Unit Device Tractor Beam Storage Large Storage Unit Processor Signal Interpreter Protection Layered Light Armor Plating Weapon Shotgun Energy Gun Field Laser Energy Cannon Heavy Phase Cannon Ballistic Gun Shotgun Launcher Rocket Launcher Special Weapon Improved Remote Datajack Impact Weapon Flail Build | -11 -10 -9 -8 -7 -7 -6 -5 ------- Run | Jun Mat Mat Mat Fac DSF Fac Fac Slots Evolved 10 | . . 2 2 2 . 2 2 Power 2 | . . . . 1 . . 1 Propulsion 3 | . . 2 . . . 1 . Utility 3 | . . . 1 1 . . 1 Weapon 2 | . . . 1 . . 1 . Parts Attached 58 | 6 4 10 6 1 10 3 18 Power 9 | 1 . 1 . . 4 . 3 Engine 8 | 1 . 1 . . 3 . 3 Core 1 | . . . . . 1 . . Reactor . | . . . . . . . . Propulsion 12 | 2 . 5 1 . 2 1 1 Treads . | . . . . . . . . Leg 12 | 2 . 5 1 . 2 1 1 Wheel . | . . . . . . . . Hover . | . . . . . . . . Flight . | . . . . . . . . Utility 11 | 1 2 1 . . 1 1 5 Device 4 | . 1 . . . 1 . 2 Storage 2 | 1 1 . . . . . . Processor 3 | . . 1 . . . 1 1 Hackware . | . . . . . . . . Protection 2 | . . . . . . . 2 Artifact . | . . . . . . . . Weapon 26 | 2 2 3 5 1 3 1 9 Energy Gun 9 | 1 . . 3 . 2 . 3 Energy Cannon 2 | . . . . . 1 . 1 Ballistic Gun 7 | 1 2 1 . 1 . 1 1 Ballistic Cannon . | . . . . . . . . Launcher 4 | . . 1 . . . . 3 Special Weapon 1 | . . . . . . . 1 Impact Weapon 3 | . . 1 2 . . . . Slashing Weapon . | . . . . . . . . Piercing Weapon . | . . . . . . . . Special Melee Weapon . | . . . . . . . . Unidentified Prototypes 3 | . . . 2 . . . 1 Parts Lost 47 | . 2 7 3 . 12 . 23 Power 9 | . . 1 . . 4 . 4 Propulsion 12 | . . 4 2 . 3 . 3 Utility 7 | . . 1 . . . . 6 Weapon 19 | . 2 1 1 . 5 . 10 Highest Loss Streak 11 | . 1 2 2 . 6 . 11 To Critical Strikes 1 | . . 1 . . . . . Average Slot Usage (%) 70 | . 99 88 74 61 37 54 41 Engine 8 | . 14 10 9 7 2 6 4 Leg 20 | . 28 33 22 15 4 8 7 Device 5 | . 13 8 . . . 6 2 Storage 8 | . 14 11 9 7 7 6 2 Processor 6 | . . 2 9 7 7 11 11 Energy Gun 4 | . 5 . 9 7 6 6 4 Ballistic Gun 9 | . 22 12 6 7 . 6 2 Impact Weapon 4 | . . 9 9 7 3 . . Naked Turns . | . . . . . . . . Heaviest Build 42 | 12 29 29 30 32 34 34 42 Greatest Support 40 | 20 20 40 30 20 20 32 32 Greatest Overweight (x) 11 | . 1 1 2 1 11 1 5 Average Overweight (x) . | . . . . 1 3 1 1 Largest Inventory Capacity 15 | 8 15 15 15 15 15 15 15 Average Capacity 12 | 7 9 15 15 15 15 15 10 Most Carried 14 | 6 8 8 14 13 14 11 11 Average Carried 7 | 2 5 6 11 13 11 9 7 Final Capacity 15 | 8 15 15 15 15 15 15 5 Final Carried 14 | 2 8 6 14 13 10 10 2 Class Distribution -------------------- 97% | Mutant Dominant Class ---------------- Mutant | -10/Materials Mutant | -9/Materials Mutant | -8/Materials Mutant | -7/Factory Mutant | -7/DSF Mutant | -6/Factory Mutant | -5/Factory Resources | -11 -10 -9 -8 -7 -7 -6 -5 ----------- Run | Jun Mat Mat Mat Fac DSF Fac Fac Matter Collected 962 | 258 193 216 61 . 60 . 174 Remotely 289 | . 193 96 . . . . . Salvage Created 1675 | . 288 432 387 . 247 . 321 Parts 90 | . 14 31 19 . 9 . 17 Haulers Intercepted . | . . . . . . . . Recyclers Shooed . | . . . . . . . . Parts Field Recycled . | . . . . . . . . Retrieved Matter . | . . . . . . . . Parts Self-Destructed . | . . . . . . . . Prevented . | . . . . . . . . Kills | -11 -10 -9 -8 -7 -7 -6 -5 ------- Run | Jun Mat Mat Mat Fac DSF Fac Fac Combat Hostiles Destroyed 40 | . 7 12 9 . 4 . 8 Melee 5 | . . 2 2 . 1 . . Guns 22 | . 7 8 4 . 2 . 1 Cannons 1 | . . . . . . . 1 AOE 6 | . . . . . . . 6 Classes Destroyed 10 | . 1 5 1 . 1 . 2 Worker 1 | . . 1 . . . . . Builder 3 | . . 1 1 . . . 1 Mechanic 1 | . . . . . . . 1 Operator 1 | . . 1 . . . . . Watcher 1 | . . . 1 . . . . Swarmer 7 | . . 4 3 . . . . Grunt 20 | . 7 3 4 . . . 6 Sentry 8 | . . 5 2 . . . 1 Specialist 4 | . . . . . 4 . . Hunter 2 | . . . . . . . 2 Best Kill Streak 5 | . 2 5 2 . 2 . 5 Combat Bots Only 5 | . 2 5 2 . 2 . 5 Max Kills in Single Turn 2 | . 1 1 2 . 1 . 2 Gunslinging . | . . . . . . . . Exploded 2 | . . . . . . . 2 Melee 1 | . . 1 1 . 1 . . Uniques/NPCs Destroyed . | . . . . . . . . Combat | -11 -10 -9 -8 -7 -7 -6 -5 -------- Run | Jun Mat Mat Mat Fac DSF Fac Fac Damage Taken 6600 | . 500 661 585 . 1822 . 3032 Core 1994 | . 95 72 162 . 646 . 1019 Absorbed by Shields . | . . . . . . . . Core Remaining (%) 70 | 100 62 82 70 . 7 100 . Volleys Fired 135 | . 31 25 19 . 18 . 42 Largest 2 | . 2 2 2 . 1 . 2 Hottest 145 | . 60 43 106 . 69 . 145 Shots Fired 208 | . 62 33 35 . 18 . 60 Gun 178 | . 62 29 35 . 17 . 35 Cannon 9 | . . . . . 1 . 8 Launcher 20 | . . 4 . . . . 16 Special 1 | . . . . . . . 1 Kinetic 95 | . 48 29 11 . . . 7 Thermal 50 | . . . 16 . 17 . 17 Explosive 20 | . . 4 . . . . 16 Electromagnetic 42 | . 14 . 8 . 1 . 19 Robot Hit Streak 11 | . 11 6 7 . 6 . 11 Robot Miss Streak 3 | . 3 3 2 . 2 . 2 Penetration Max . | . . . . . . . . Secondary Targets 3 | . 1 . 1 . . . 1 Max Gunslinging Chain 1 | . 1 . 1 . . . 1 Shots Hit Robots 185 | . 50 37 36 . 19 . 43 Core Hits 95 | . 18 21 15 . 5 . 36 Critical Kills 2 | . . 2 . . . . . Critical Parts Destroyed 7 | . . 1 4 . 2 . . Critical Strikes 13 | . 1 3 7 . 2 . . Burn 3 | . . . 3 . . . . Corrupt 1 | . 1 . . . . . . Smash 9 | . . 3 4 . 2 . . Melee Attacks 38 | . . 18 13 . 7 . . Impact 38 | . . 18 13 . 7 . . Slashing . | . . . . . . . . Piercing . | . . . . . . . . Sneak Attacks . | . . . . . . . . Combat Hostiles . | . . . . . . . . Follow-up Attacks . | . . . . . . . . Damage Inflicted 4705 | . 705 790 881 . 491 . 1838 Guns 1929 | . 705 303 342 . 208 . 371 Cannons 237 | . . . . . 26 . 211 Explosions 1528 | . . 162 110 . . . 1256 Melee 1011 | . . 325 429 . 257 . . Ramming . | . . . . . . . . Kinetic 989 | . 554 303 42 . . . 90 Thermal 789 | . . . 298 . 208 . 283 Explosive 1418 | . . 162 . . . . 1256 Electromagnetic 498 | . 151 . 112 . 26 . 209 Impact 1011 | . . 325 429 . 257 . . Slashing . | . . . . . . . . Piercing . | . . . . . . . . Highest Corruption 3 | . . . . . . . 3 Average Corruption 2 | . . . . . . . 2 Corruption Purged . | . . . . . . . . Corruption Blocked . | . . . . . . . . Effects 6 | . . . . . . . 6 Message Errors 1 | . . . . . . . 1 Matter Fused 1 | . . . . . . . 1 Energy Discharges 3 | . . . . . . . 3 Data Loss (major) 1 | . . . . . . . 1 Overload Shots . | . . . . . . . . Overflow Damage 311 | . . 38 181 . 92 . . Projectiles . | . . . . . . . . Explosions 34 | . . 3 31 . . . . Melee 277 | . . 35 150 . 92 . . Knockbacks 3 | . . 1 2 . . . . Impact 3 | . . 1 2 . . . . Kinetic . | . . . . . . . . Secondary . | . . . . . . . . Self-Inflicted Damage 60 | . . . 51 . . . 9 Shots 2 | . . . 1 . . . 1 Rammed . | . . . . . . . . Targets Rammed . | . . . . . . . . Kicked . | . . . . . . . . Crushed . | . . . . . . . . Highest Temperature 221 | . 132 2 221 . . . 198 Average Temperature 63 | . 43 2 67 . . . 73 Received Heat Transfer 1401 | . 303 180 306 . . . 612 Siege Activations . | . . . . . . . . Robots Corrupted . | . . . . . . . . Combat Hostiles . | . . . . . . . . Parts Fried 8 | . 1 3 3 . . . 1 Impact Corruptions 14 | . . 3 8 . 3 . . Robots Melted . | . . . . . . . . Combat Hostiles . | . . . . . . . . Parts Melted . | . . . . . . . . Heat Transferred 1580 | . . . 729 . 444 . 407 Parts Sabotaged . | . . . . . . . . Parts Stolen . | . . . . . . . . Parts Stripped . | . . . . . . . . Power Chain Reactions 1 | . . . 1 . . . . Missiles Intercepted . | . . . . . . . . Alert | -11 -10 -9 -8 -7 -7 -6 -5 ------- Run | Jun Mat Mat Mat Fac DSF Fac Fac Peak Influence 336 | . 155 250 336 78 54 21 165 Initial 105 | . . 5 105 78 54 21 9 Average 82 | . 54 134 159 78 32 21 25 Maximum Alert Level 1 | . . 1 1 . . . . Low Security (%) 91 | 100 100 88 64 100 100 100 100 Level 1 8 | . . 11 35 . . . . Level 2 . | . . . . . . . . Level 3 . | . . . . . . . . Level 4 . | . . . . . . . . Level 5 . | . . . . . . . . High Security . | . . . . . . . . Max Security . | . . . . . . . . Squads Dispatched 6 | . . 2 1 . 1 . 2 Investigation 1 | . . 1 . . . . . Extermination . | . . . . . . . . Reinforcement 5 | . . 1 1 . 1 . 2 Assault . | . . . . . . . . Garrison . | . . . . . . . . Intercept . | . . . . . . . . Searches Triggered . | . . . . . . . . Construction Impeded . | . . . . . . . . Haulers Reinforced . | . . . . . . . . Active Scanning Responses . | . . . . . . . . Cargo Convoy Interrupts . | . . . . . . . . Stealth | -11 -10 -9 -8 -7 -7 -6 -5 --------- Run | Jun Mat Mat Mat Fac DSF Fac Fac Distress Signals 3 | . 1 . 2 . . . . Communications Jammed . | . . . . . . . . Distress Signals . | . . . . . . . . Times Spotted 61 | . 10 13 13 . 5 . 20 Peak Tracking Total 7 | . 3 4 6 . 4 . 7 Tactical Retreats 7 | . . . 4 . 1 . 2 Traps | -11 -10 -9 -8 -7 -7 -6 -5 ------- Run | Jun Mat Mat Mat Fac DSF Fac Fac Traps Triggered 1 | . . 1 . . . . . Indirectly . | . . . . . . . . Trap Hack Attempts . | . . . . . . . . Triggered . | . . . . . . . . Disarmed . | . . . . . . . . Reprogrammed . | . . . . . . . . Reused . | . . . . . . . . Traps Extracted . | . . . . . . . . Installed . | . . . . . . . . Triggered . | . . . . . . . . Machines | -11 -10 -9 -8 -7 -7 -6 -5 ---------- Run | Jun Mat Mat Mat Fac DSF Fac Fac Machines Disabled 1 | . . . . . . . 1 Max in Single Turn 1 | . . . . . . . 1 Machines Repaired . | . . . . . . . . Machines Sabotaged . | . . . . . . . . Overloaded Fab Kills . | . . . . . . . . Hacking | -11 -10 -9 -8 -7 -7 -6 -5 --------- Run | Jun Mat Mat Mat Fac DSF Fac Fac Machines Accessed 14 | . 3 4 5 1 . . 1 Terminals 11 | . 2 3 5 1 . . . Fabricators 1 | . . . . . . . 1 Repair Stations . | . . . . . . . . Recycling Units 2 | . 1 1 . . . . . Scanalyzers . | . . . . . . . . Garrison Access . | . . . . . . . . Total Hacks 25 | . 4 9 10 1 . . 1 Successful 15 | . 2 7 5 1 . . . Failed 10 | . 2 2 5 . . . 1 Catastrophic 2 | . . . 1 . . . 1 Database Lockouts . | . . . . . . . . Manual . | . . . . . . . . Terminals 21 | . 3 7 10 1 . . . Fabricators 1 | . . . . . . . 1 Repair Stations . | . . . . . . . . Recycling Units 3 | . 1 2 . . . . . Scanalyzers . | . . . . . . . . Garrison Access . | . . . . . . . . Terminal Hacks 13 | . 1 6 5 1 . . . Robot Analysis 1 | . . . 1 . . . . Prototype ID Bank 1 | . 1 . . . . . . Open DSF 1 | . . . . 1 . . . Branch Access Points 1 | . . 1 . . . . . Scanalyzer Index 1 | . . . 1 . . . . Unreport Threat 1 | . . . 1 . . . . Hauler Manifests 3 | . . 2 1 . . . . Zone Layout 4 | . . 3 1 . . . . Fabricator Hacks . | . . . . . . . . Repair Station Hacks . | . . . . . . . . Recycling Unit Hacks 2 | . 1 1 . . . . . Retrieve Components 2 | . 1 1 . . . . . Scanalyzer . | . . . . . . . . Garrison Access Hacks . | . . . . . . . . Unauthorized Hacks . | . . . . . . . . Terminals . | . . . . . . . . Fabricators . | . . . . . . . . Repair Stations . | . . . . . . . . Recycling Units . | . . . . . . . . Scanalyzers . | . . . . . . . . Garrison Access . | . . . . . . . . Data Cores Recovered 1 | . . 1 . . . . . Used . | . . . . . . . . Hacking Detections 8 | . 1 3 3 . . . 1 Full Trace Events . | . . . . . . . . Feedback Events . | . . . . . . . . Feedback Blocked . | . . . . . . . . Robot Schematics Acquired . | . . . . . . . . Robots Built . | . . . . . . . . Authchips . | . . . . . . . . Time . | . . . . . . . . Total Robot Build Rating . | . . . . . . . . Part Schematics Acquired . | . . . . . . . . Parts Built . | . . . . . . . . Authchips . | . . . . . . . . Time . | . . . . . . . . Total Part Build Rating . | . . . . . . . . Parts Repaired . | . . . . . . . . Time . | . . . . . . . . Parts Recycled . | . . . . . . . . Recycled Matter . | . . . . . . . . Retrieved Matter . | . . . . . . . . Retrieved Components 3 | . 3 . . . . . . Parts Scanalyzed . | . . . . . . . . Part Schematics Acquired . | . . . . . . . . Parts Damaged . | . . . . . . . . Bothacking | -11 -10 -9 -8 -7 -7 -6 -5 ------------ Run | Jun Mat Mat Mat Fac DSF Fac Fac Used RIF Installer . | . . . . . . . . Robots Hacked 1 | . . . . . . . 1 Non-combat . | . . . . . . . . Combat 1 | . . . . . . . 1 Robot Hacks Applied 1 | . . . . . . . 1 parse_system 1 | . . . . . . . 1 Relay Couplers Released . | . . . . . . . . Fabnet Peak Effective % . | . . . . . . . . Robots Rewired 1 | . . . . . . . 1 Allies Hacked 1 | . . . . . . . 1 Hacks Repelled . | . . . . . . . . Allies | -11 -10 -9 -8 -7 -7 -6 -5 -------- Run | Jun Mat Mat Mat Fac DSF Fac Fac Total Allies 1 | . . . . . . . 1 Largest Group 1 | . . . . . . . 1 Highest-Rated Group 41 | . . . . . . . 41 Highest-Rated Ally 41 | . . . . . . . 41 Total Orders . | . . . . . . . . Ally Attacks 1 | . . . . . . . 1 Total Damage 27 | . . . . . . . 27 Kills . | . . . . . . . . Allies Corrupted . | . . . . . . . . Allies Melted . | . . . . . . . . Intel | -11 -10 -9 -8 -7 -7 -6 -5 ------- Run | Jun Mat Mat Mat Fac DSF Fac Fac Robot Analysis Total 1 | . . . 1 . . . . Derelict Logs Recovered . | . . . . . . . . Drone Launches . | . . . . . . . . Drone Recoveries . | . . . . . . . . Exploration | -11 -10 -9 -8 -7 -7 -6 -5 ------------- Run | Jun Mat Mat Mat Fac DSF Fac Fac Turns Passed 2709 | 60 479 721 448 24 229 134 614 Spaces Moved 1080 | 45 242 225 204 13 49 69 233 Core 42 | 12 . . . . 10 . 20 Treads . | . . . . . . . . Legs 1038 | 33 242 225 204 13 39 69 213 Wheels . | . . . . . . . . Hover . | . . . . . . . . Flight . | . . . . . . . . Fastest Speed 50 | 50 120 120 120 190 190 185 50 Average Speed 156 | 101 137 120 144 190 287 187 191 Slowest Speed 600 | 120 190 190 260 190 600 190 300 Overloaded Moves . | . . . . . . . . Propulsion Burnouts . | . . . . . . . . Robots Hopped . | . . . . . . . . Cave-ins Triggered . | . . . . . . . . Exploration Rate (%) 18 | 3 39 21 15 . 44 3 7 Regions Visited 7 Branch Regions . Pre-discovered Areas . | . . . . . . . . Known Exits Taken 4 | . . 1 1 1 . 1 . Unknown Exits Taken 2 | 1 1 . . . . . . Scrap Searched . | . . . . . . . . Spaces Dug . | . . . . . . . . Terrain Destroyed 82 | . . 28 9 . . . 45 Melee . | . . . . . . . . Projectile 3 | . . . . . . . 3 AOE 79 | . . 28 9 . . . 42 Terrain Rammed . | . . . . . . . . Walls Destroyed . | . . . . . . . . Machines Disabled . | . . . . . . . . Actions | -11 -10 -9 -8 -7 -7 -6 -5 --------- Run | Jun Mat Mat Mat Fac DSF Fac Fac Total 1834 | 58 327 614 298 13 106 74 344 Wait 460 | 2 38 331 43 . 16 . 30 Move 1073 | 44 241 224 203 12 48 68 233 Hop . | . . . . . . . . Pick Up 56 | 6 11 6 12 . 7 3 11 Fast Attach 4 | 2 . . . . . . 2 Attach 49 | 4 3 8 4 1 10 3 16 Detach 1 | . . . . . . . 1 Swap 5 | . 1 2 2 . . . . Drop 6 | . 2 . 2 . . . 2 Fire 135 | . 31 25 19 . 18 . 42 Melee 38 | . . 18 13 . 7 . . Ram . | . . . . . . . . Kick . | . . . . . . . . Crush . | . . . . . . . . Escape Stasis . | . . . . . . . . Rewire 7 | . . . . . . . 7 Trap . | . . . . . . . . Miscellaneous . | . . . . . . . . Route ------- -11/Junkyard -10/Materials -9/Materials (discovered 2 exits: *Mat / Min) -8/Materials -7/Factory -7/DSF -6/Factory -5/Factory History --------- Turn | Location | Event 8 | -11/Junkyard | Discovered new exit (range 15) 61 | -11/Junkyard | Entered Materials 306 | -10/Materials | Discovered new exit (range 5) 312 | -10/Materials | Build established: Mutant 540 | -10/Materials | Entered another Materials area 540 | -9/Materials | Evolved 2 slots: Propulsion x2 662 | -9/Materials | Identified exit to Mines 1137 | -9/Materials | Discovered new exit (range 16) 1258 | -9/Materials | Identified exit to Materials 1261 | -9/Materials | Entered another Materials area 1261 | -8/Materials | Evolved 2 slots: Utility x1, Weapon x1 1457 | -8/Materials | Discovered new exit (range 5) 1461 | -8/Materials | Identified exit to Factory 1709 | -8/Materials | Entered Factory 1709 | -7/Factory | Evolved 2 slots: Power x1, Utility x1 1733 | -7/Factory | Identified exit to DSF 1733 | -7/Factory | Entered DSF 1791 | -7/DSF | Lost 4 parts (1p1n2w) 1843 | -7/DSF | Additional patrols routed to DSF 1851 | -7/DSF | Discovered new exit (range 11) 1876 | -7/DSF | Core integrity fell below 50% 1897 | -7/DSF | Core integrity fell below 20% 1938 | -7/DSF | Lost 6 parts (2p1n3w) 1953 | -7/DSF | Identified exit to Factory 1962 | -7/DSF | Entered Factory 1962 | -6/Factory | Evolved 2 slots: Propulsion x1, Weapon x1 1999 | -6/Factory | Discovered new exit (range 11) 2018 | -6/Factory | Identified exit to Factory 2096 | -6/Factory | Entered another Factory area 2096 | -5/Factory | Evolved 2 slots: Power x1, Utility x1 2479 | -5/Factory | Lost 11 parts (2p2n3u4w) 2521 | -5/Factory | Core integrity fell below 50% 2704 | -5/Factory | Core integrity fell below 20% 2710 | -5/Factory | Destroyed by H-71 Marshal with Heavy Mass Driver Last Messages --------------- U-05 Engineer lays Concrete. Phase Shifter destroyed. U-05 Engineer lays Concrete. K-01 Serf destroyed. Imp. Deuterium Engine destroyed. U-05 Engineer lays Concrete. K-01 Serf collects debris. U-05 Engineer builds a Wall. Slug penetrates H-71 Marshal. U-05 Engineer builds a Wall. U-05 Engineer lays Concrete. K-01 Serf destroyed. Slug penetrates Wall. U-05 Engineer lays Concrete. KE Penetrator destroyed. R-10 Processor collects Wheel. U-05 Engineer lays Concrete. U-05 Engineer builds a Door. U-05 Engineer builds a Wall. Penetrated by Slug. Map ----- +----------------------------------------------------+ | # """"""" +????????????????????????? | | # #????????????????????????? | | # """"""" ###??????????????????????? | | # # """"""" + ???????????????????????? | | # # """"""" #????????????????????????? | | # # """"""" #????????????????????????? | | # # #????????????????????????? | | # #????????????????????????? | | # # ########/#####????????????????????????? | | # #??????# #????????????????????????????? | | # #??????# #????????????????????????????? | | # #??????# #????????????????????????????? | | # ######## #########????????????????????? | | # + = #??????????????? | | ########## #########????????????????????? | | #????????# ;;;;;;###????????????????????? | | #????????#xRg ] ;#???#????????????????? | | #???????##H#= #### ##???????????????? | | ## ## ###?########u*= u+ ????????????????? | | ; %x ;###??????????????????? | | # # ##############!; gg; #??????????????????? | | #??? # ; %= ; #??????????????????? | | ######???? ; ;;; ;;;; ##??????????????????? | | ????????? # %;;;#####?????????????????? | | ????????? ??# ; #?????????????????? | | ??????????#+##????# ; @ ] #?????????????????? | | ??????????????????# ; #?????????????????? | | ??????????????????# #;#######?????????????????? | | ???????????????? ???????????????????????? | | ???????????????####+#####"???????????????????????? | | ????????????????????????? ???????????????????????? | | ?????????????????????????#???????????????????????? | | ?????????????????????????????????????????????????? | | ?????????????????????????????????????????????????? | | ?????????????????????????????????????????????????? | | ?????????????????????????????????????????????????? | | ?????????????????????????????????????????????????? | | ?????????????????????????????????????????????????? | | ?????????????????????????????????????????????????? | | ?????????????????????????????????????????????????? | | ?????????????????????????????????????????????????? | | ?????????????????????????????????????????????????? | | ?????????????????????????????????????????????????? | | ?????????????????????????????????????????????????? | | ?????????????????????????????????????????????????? | | ?????????????????????????????????????????????????? | | ?????????????????????????????????????????????????? | | ?????????????????????????????????????????????????? | | ?????????????????????????????????????????????????? | | ?????????????????????????????????????????????????? | +----------------------------------------------------+ Best States ------------- Heat Dissipation 40 Energy Generation 18 Energy Capacity 300 Matter Stores 300 Matter Capacity 300 Sight Range 16 Terrain Scan Density 10 Armor Coverage 225 Point Defense Rating 80 Weapon Cycling 15 Phase Shifting 5 Evasion (%) 55 Targeting Accuracy 8 Launcher Accuracy 20 Item Schematics ----------------- None Robot Schematics ------------------ None Fabricated ------------ Nothing Alien Tech Used ----------------- None Achievements -------------- A New Friend Shopping List Use The Force Challenges ------------ None Game ------ Seed ActuatorGuidanceNanosword Manual? 0 Play Time 00:35:02 Cumulative 15.4 hours Start 2023.08.05 @ 20:45:47 End 2023.08.10 @ 00:49:50 Sessions 4 Manual Loads 0 Difficulty Rogue Special Mode None Game No. 24 Rogue 24 Adventurer 0 Explorer 0 Win Type - Total 0 Types 0/0/0/0/0/0/0/0/0 Lore% 18 Gallery% 20 Achievement% 16 Wizard Run 0 Options --------- ASCII 0 Keyboard 0 Movement Mouse Keybinds 0 Fullscreen 1 Font 18/SmallcapsGlow Map View 76x50 Tactical HUD 0 Map Filters NONE Filters NONE Steam 1 RUN: 0e64214d-9880-4be5-9fe0-2b8a3e63a71f